Cogmind - Beta 13 @@@ ROGUE MODE // 2024.04.17 @ 17:59:05 Player: Exceptionally Mediocre Result: Destroyed by Autobeam Turret with Autobeam Performance ------------- Evolutions (0) 0 Regions Visited (2) 400 Robots Destroyed (39) 195 Value Destroyed (564) 564 Prototype IDs (1) 20 Alien Tech Used (0) 0 Bonus (0) 0 TOTAL SCORE: 1179 Bonus ------- None Cogmind --------- Core Integrity 0/250 Matter 245/300 Energy 99/100 System Corruption 0% Temperature Cool (12) Movement Rolling (140) Ox4 Location -10/Subcaves Parts ------- > --- POWER (1) -------- (None) > --- PROPULSION (2) --- Wheel > --- UTILITY (2) ------ High-capacity Storage Unit Hardened Light Armor Plating > --- WEAPON (2) ------- Medium Laser Improved Assault Rifle > --- INVENTORY (20) --- Light Ion Engine Wheel Wheel Subdweller Monowheel High-capacity Battery (250) Improved Terrain Scanner Weapon Shielding Weapon Shielding Weapon Shielding Weapon Shielding Weapon Shielding Weapon Shielding Light Armor Plating Light Armor Plating Hardened Light Armor Plating Hardened Light Armor Plating Subdweller Beam Cannon Mining Laser Peak State ------------ > --- POWER ------------ Light Ion Engine > --- PROPULSION ------- Wheel Compact Wheel > --- UTILITY ---------- Small Storage Unit Improved Terrain Scanner > --- WEAPON ----------- Improved Assault Rifle Improved Assault Rifle > --- INVENTORY -------- Ion Engine Light Ion Engine Light Ion Engine Wheel Wheel High-capacity Battery Medium Laser Improved Assault Rifle [Rating: 14] Favorites ----------- Power Light Ion Engine Engine Light Ion Engine Propulsion Wheel Wheel Wheel Utility Hardened Light Armor Plating Device Improved Terrain Scanner Storage Large Storage Unit Protection Hardened Light Armor Plating Weapon Improved Assault Rifle Energy Gun Medium Laser Energy Cannon Subdweller Beam Cannon Ballistic Gun Improved Assault Rifle Build | -11 -10 -10 ------- Run | Yrd Mat Sub Slots Evolved . | . . . Power . | . . . Propulsion . | . . . Utility . | . . . Weapon . | . . . Parts Attached 28 | 7 16 5 Power 6 | 1 4 1 Engine 6 | 1 4 1 Core . | . . . Reactor . | . . . Propulsion 7 | 2 5 . Treads . | . . . Leg . | . . . Wheel 7 | 2 5 . Hover . | . . . Flight . | . . . Utility 6 | 2 3 1 Device 1 | 1 . . Storage 3 | 1 2 . Processor . | . . . Hackware . | . . . Protection 2 | . 1 1 Artifact . | . . . Weapon 9 | 2 4 3 Energy Gun 1 | . . 1 Energy Cannon 1 | . . 1 Ballistic Gun 7 | 2 4 1 Ballistic Cannon . | . . . Launcher . | . . . Special Weapon . | . . . Impact Weapon . | . . . Slashing Weapon . | . . . Piercing Weapon . | . . . Special Melee Weapon . | . . . Unidentified Prototypes 1 | . 1 . Parts Lost 7 | . 1 6 Power 3 | . 1 2 Propulsion 1 | . . 1 Utility 1 | . . 1 Weapon 2 | . . 2 Highest Loss Streak 4 | . 1 4 To Critical Strikes . | . . . Average Slot Usage (%) 99 | . 100 98 Engine 14 | . 14 14 Wheel 28 | . 28 28 Device 3 | . 4 . Storage 14 | . 14 14 Protection 9 | . 9 12 Ballistic Gun 27 | . 28 23 Naked Turns . | . . . Heaviest Build 59 | 11 54 59 Greatest Support 26 | 26 26 20 Greatest Overweight (x) 2 | . 2 2 Average Overweight (x) 1 | . 1 2 Largest Inventory Capacity 20 | 8 20 20 Average Capacity 15 | 7 15 20 Most Carried 20 | 7 20 20 Average Carried 14 | 3 14 19 Final Capacity 20 | 8 20 20 Final Carried 20 | 7 20 18 Class Distribution -------------------- 100% | Mutant Dominant Class ---------------- Mutant | -10/Materials Mutant | -10/Subcaves Resources | -11 -10 -10 ----------- Run | Yrd Mat Sub Matter Collected 952 | 287 577 88 Remotely . | . . . Salvage Created 1035 | 107 758 170 Parts 72 | 10 47 15 Haulers Intercepted 2 | . 2 . Recyclers Shooed 1 | . 1 . Parts Field Recycled . | . . . Retrieved Matter . | . . . Parts Self-Destructed 16 | . . 16 Prevented . | . . . Kills | -11 -10 -10 ------- Run | Yrd Mat Sub Combat Hostiles Destroyed 18 | . 12 6 Guns 15 | . 12 3 Cannons 3 | . . 3 Classes Destroyed 11 | 3 6 2 Worker 6 | 1 5 . Builder 3 | . 3 . Tunneler 4 | 3 1 . Hauler 2 | . 2 . Recycler 2 | 1 1 . Operator 1 | . 1 . Turret 1 | . . 1 Watcher 2 | . 2 . Swarmer 9 | . 5 4 Grunt 7 | . 7 . Subdweller 2 | . . 2 Best Kill Streak 4 | 2 4 4 Combat Bots Only 4 | . 3 4 Max Kills in Single Turn 2 | 1 2 1 Gunslinging . | . . . Exploded . | . . . Melee . | . . . Uniques/NPCs Destroyed . | . . . Combat | -11 -10 -10 -------- Run | Yrd Mat Sub Hostile Shots Fired 165 | . 60 105 Missed 54 | . 19 35 Damage Taken 1147 | . 510 637 Core 251 | . 96 155 Absorbed by Shields . | . . . Core Remaining (%) 100 | 100 . . Volleys Fired 113 | 22 65 26 Largest 2 | 2 2 2 Hottest 103 | 40 46 103 Shots Fired 225 | 44 130 51 Gun 216 | 44 130 42 Cannon 9 | . . 9 Launcher . | . . . Special . | . . . Kinetic 215 | 44 130 41 Thermal 10 | . . 10 Explosive . | . . . Electromagnetic . | . . . Robot Hit Streak 16 | 9 16 12 Robot Miss Streak 8 | 3 3 8 Penetration Max . | . . . Secondary Targets 3 | . 3 . Max Gunslinging Chain 1 | . 1 . Shots Hit Robots 155 | 27 91 37 Core Hits 52 | 10 32 10 Critical Kills 1 | . 1 . Critical Parts Destroyed . | . . . Critical Strikes 1 | . 1 . Destroy 1 | . 1 . Melee Attacks . | . . . Impact . | . . . Slashing . | . . . Piercing . | . . . Sneak Attacks . | . . . Combat Hostiles . | . . . Follow-up Attacks . | . . . Damage Inflicted 2157 | 202 1343 612 Guns 1963 | 202 1343 418 Cannons 194 | . . 194 Explosions . | . . . Melee . | . . . Ramming . | . . . Kinetic 1951 | 202 1343 406 Thermal 206 | . . 206 Explosive . | . . . Electromagnetic . | . . . Impact . | . . . Slashing . | . . . Piercing . | . . . Highest Corruption . | . . . Average Corruption . | . . . Corruption Purged . | . . . Corruption Blocked . | . . . Overload Shots . | . . . Overflow Damage 6 | . . 6 Projectiles 6 | . . 6 Explosions . | . . . Melee . | . . . Knockbacks . | . . . Impact . | . . . Kinetic . | . . . Secondary . | . . . Self-Inflicted Damage . | . . . Shots . | . . . Rammed . | . . . Targets Rammed . | . . . Kicked . | . . . Crushed . | . . . Highest Temperature 63 | . 36 63 Average Temperature 18 | . 14 37 Received Heat Transfer 474 | . 210 264 Siege Activations . | . . . Robots Corrupted . | . . . Combat Hostiles . | . . . Parts Fried . | . . . Impact Corruptions . | . . . Robots Melted . | . . . Combat Hostiles . | . . . Parts Melted . | . . . Heat Transferred 296 | . . 296 Parts Sabotaged . | . . . Parts Stolen . | . . . Parts Stripped . | . . . Power Chain Reactions . | . . . Alert | -11 -10 -10 ------- Run | Yrd Mat Sub Peak Influence 228 | 25 228 . Initial 16 | . 16 . Average 94 | 11 102 . Maximum Alert Level 1 | . 1 . Low Security (%) 94 | 100 93 . Level 1 5 | . 6 . Level 2 . | . . . Level 3 . | . . . Level 4 . | . . . Level 5 . | . . . High Security . | . . . Max Security . | . . . Squads Dispatched 4 | . 4 . Investigation 3 | . 3 . Extermination . | . . . Reinforcement 1 | . 1 . Assault . | . . . Garrison . | . . . Intercept . | . . . Searches Triggered . | . . . Construction Impeded . | . . . Haulers Reinforced . | . . . Active Scanning Responses . | . . . Cargo Convoy Interrupts . | . . . Stealth | -11 -10 -10 --------- Run | Yrd Mat Sub Distress Signals 1 | . 1 . Communications Jammed . | . . . Distress Signals . | . . . Times Spotted 64 | . 23 41 Peak Tracking Total 8 | . 5 8 Tactical Retreats 5 | . 2 3 Traps | -11 -10 -10 ------- Run | Yrd Mat Sub Traps Triggered 4 | . 4 . Indirectly . | . . . Trap Hack Attempts . | . . . Triggered . | . . . Disarmed . | . . . Reprogrammed . | . . . Reused . | . . . Traps Extracted . | . . . Installed . | . . . Triggered . | . . . Machines | -11 -10 -10 ---------- Run | Yrd Mat Sub Machines Disabled 1 | . . 1 Max in Single Turn 1 | . . 1 Machines Repaired . | . . . Machines Dismantled . | . . . Machines Sabotaged . | . . . Overloaded Fab Kills . | . . . Hacking | -11 -10 -10 --------- Run | Yrd Mat Sub Machines Accessed 5 | . 5 . Terminals 3 | . 3 . Fabricators . | . . . Repair Stations . | . . . Recycling Units 2 | . 2 . Scanalyzers . | . . . Garrison Access . | . . . Total Hacks 6 | . 6 . Successful 3 | . 3 . Failed 3 | . 3 . Catastrophic . | . . . Database Lockouts . | . . . Manual 3 | . 3 . Terminals 3 | . 3 . Fabricators . | . . . Repair Stations . | . . . Recycling Units 3 | . 3 . Scanalyzers . | . . . Garrison Access . | . . . Terminal Hacks 1 | . 1 . Zone Layout 1 | . 1 . Fabricator Hacks . | . . . Repair Station Hacks . | . . . Recycling Unit Hacks 1 | . 1 . Retrieve Components 1 | . 1 . Scanalyzer . | . . . Garrison Access Hacks . | . . . Unauthorized Hacks 1 | . 1 . Terminals 1 | . 1 . Botnet 1 | . 1 . Fabricators . | . . . Repair Stations . | . . . Recycling Units . | . . . Scanalyzers . | . . . Garrison Access . | . . . Data Cores Recovered . | . . . Used . | . . . Hacking Detections 2 | . 2 . Full Trace Events 1 | . 1 . Feedback Events . | . . . Feedback Blocked . | . . . Robot Schematics Acquired . | . . . Robots Built . | . . . Authchips . | . . . Time . | . . . Total Robot Build Rating . | . . . Part Schematics Acquired . | . . . Parts Built . | . . . Authchips . | . . . Time . | . . . Total Part Build Rating . | . . . Parts Repaired . | . . . Time . | . . . Parts Recycled . | . . . Recycled Matter . | . . . Retrieved Matter . | . . . Retrieved Components 8 | . 8 . Parts Scanalyzed . | . . . Part Schematics Acquired . | . . . Parts Damaged . | . . . Bothacking | -11 -10 -10 ------------ Run | Yrd Mat Sub Used RIF Installer . | . . . Robots Hacked . | . . . Non-combat . | . . . Combat . | . . . Robot Hacks Applied . | . . . Relay Couplers Released . | . . . Fabnet Peak Effective % . | . . . Robots Rewired . | . . . Allies Hacked . | . . . Hacks Repelled . | . . . Allies | -11 -10 -10 -------- Run | Yrd Mat Sub Total Allies . | . . . Largest Group . | . . . Highest-Rated Group . | . . . Highest-Rated Ally . | . . . Total Orders . | . . . Ally Attacks . | . . . Total Damage . | . . . Kills . | . . . Allies Corrupted . | . . . Allies Melted . | . . . Intel | -11 -10 -10 ------- Run | Yrd Mat Sub Robot Analysis Total . | . . . Derelict Logs Recovered . | . . . Drone Launches . | . . . Drone Recoveries . | . . . Exploration | -11 -10 -10 ------------- Run | Yrd Mat Sub Turns Passed 1798 | 141 1531 126 Spaces Moved 1320 | 74 1210 36 Core 1 | 1 . . Treads . | . . . Legs . | . . . Wheels 1319 | 73 1210 36 Hover . | . . . Flight . | . . . Fastest Speed 50 | 50 90 110 Average Speed 104 | 89 104 110 Slowest Speed 110 | 100 110 110 Overloaded Moves . | . . . Propulsion Burnouts . | . . . Robots Hopped . | . . . Cave-ins Triggered . | . . . Exploration Rate (%) 35 | 4 98 5 Regions Visited 2 Branch Regions 1 Pre-discovered Areas . | . . . Known Exits Taken . | . . . Unknown Exits Taken 2 | 1 1 . Scrap Searched . | . . . Spaces Dug . | . . . Terrain Destroyed 1 | . . 1 Melee . | . . . Projectile 1 | . . 1 AOE . | . . . Terrain Rammed . | . . . Walls Destroyed . | . . . Machines Disabled . | . . . Actions | -11 -10 -10 --------- Run | Yrd Mat Sub Total 1529 | 110 1349 70 Wait 14 | . 13 1 Move 1318 | 73 1209 36 Hop . | . . . Pick Up 36 | 8 26 2 Fast Attach 8 | 6 2 . Attach 7 | 1 2 4 Detach . | . . . Swap 13 | . 12 1 Drop 20 | . 20 . Fire 113 | 22 65 26 Melee . | . . . Ram . | . . . Kick . | . . . Crush . | . . . Escape Stasis . | . . . Rewire . | . . . Trap . | . . . Miscellaneous . | . . . Route ------- -11/Scrapyard -10/Materials (discovered 5 exits: [*Mat x3] / [*Min] / [*Sub]) -10/Subcaves (discovered 1 exit: [*Rec]) History --------- Turn | Location | Event 19 | -11/Scrapyard | Discovered new exit (range 16) 142 | -11/Scrapyard | Entered Materials 260 | -10/Materials | Discovered new exit (range 15) 321 | -10/Materials | Build established: Mutant 430 | -10/Materials | Discovered new exit (range 17) 604 | -10/Materials | Discovered new exit (range 13) 818 | -10/Materials | Discovered new exit (range 15) 1667 | -10/Materials | Discovered new exit (range 6) 1673 | -10/Materials | Entered Subcaves 1713 | -10/Subcaves | Core integrity fell below 50% 1780 | -10/Subcaves | Discovered new exit (range 11) 1786 | -10/Subcaves | Core integrity fell below 20% 1799 | -10/Subcaves | Destroyed by Autobeam Turret with Autobeam Last Messages --------------- 01772_ Lgt. Ion Engine fries itself beyond repair. 01772_ S-10 Pest destroyed. 01777_ Flight Unit fries itself beyond repair. 01778_ Acquired 18 matter. 01780_ Flight Unit fries itself beyond repair. 01780_ EXIT=FOUND 01782_ Lgt. Ion Engine fries itself beyond repair. 01785_ Machine disabled. 01785_ Hrd. Light Armor Plating destroyed. 01786_ Flight Unit fries itself beyond repair. 01791_ Wheel destroyed. 01792_ Lgt. Ion Engine fries itself beyond repair. 01792_ Sub. Beam Cannon shoots sparks and powers down. 01795_ Lgt. Ion Engine destroyed. 01797_ Destroyed Autobeam. 01797_ Autobeam Turret destroyed. Map ----- +----------------------------------------------------+ | ?????????????????????????????????????????????????? | | ?????????????????????????????????????????????????? | | ?????????????????????????????????????????????????? | | ?????????????????????????????????????????????????? | | ?????????????????????????????????????????????????? | | ?????????????????????????????????????????????????? | | ?????????????????????????????????????????????????? | | ?????????????????????????????????????????????????? | | ?????????????????????????????????????????????????? | | ????????????????????????????????????????????##???? | | ???????????????????????????????????????????? ##??? | | ???????????????????????????????????????????? ##?? | | ???????????????????????????????????????????# ##? | | ???????????????????????##????????????????### #? | | ???????????????????#####<##???##?????????# #? | | ???????????????????#"""" ""???# ##?????### ## | | ???????????????????#" " ???# #?????? | | ???????????????????#" t ???# #?####?# | | ???????????????????# % ???#""### ### #?? | | ???????????????????? ???# """##? | | ????????????????????? ???## ### """""## | | ??????????????????????# ###?## !## " # | | ??????????????????????# "###"" ! & &#### | | ??????????????????????# "" ## "&%[ # # | | ???????????????????????# ### #" # | | ???????????????????????# @ ; # ## ## # | | ???????????????????????# %%"" # ######### | | ???????????????????????# % # #########?????????# | | ???????????????????????## $ ####?????????????????? | | ???????????????????????# """ ????????????????????? | | ???????????????????????#" "" #???????????????????? | | ???????????????????????### #???????????????????? | | ?????????????????????????# #???????????????????? | | ?????????????????????????## ???????????????????? | | ?????????????????????????? #???????????????????? | | ?????????????????????????? ###???????????????????? | | ?????????????????????????? ??????????????????????? | | ?????????????????????????? ??????????????????????? | | ?????????????????????????? ??????????????????????? | | ?????????????????????????????????????????????????? | | ?????????????????????????????????????????????????? | | ?????????????????????????????????????????????????? | | ?????????????????????????????????????????????????? | | ?????????????????????????????????????????????????? | | ?????????????????????????????????????????????????? | | ?????????????????????????????????????????????????? | | ?????????????????????????????????????????????????? | | ?????????????????????????????????????????????????? | | ?????????????????????????????????????????????????? | | ?????????????????????????????????????????????????? | +----------------------------------------------------+ Best States ------------- Heat Dissipation 25 Energy Generation 10 Energy Capacity 250 Matter Stores 300 Matter Capacity 300 Sight Range 16 Terrain Scan Range 16 Terrain Scan Density 10 Armor Coverage 150 Evasion (%) 42 Item Schematics ----------------- None Robot Schematics ------------------ None Fabricated ------------ Nothing Alien Tech Used ----------------- None Achievements -------------- None Challenges ------------ None Game ------ Seed MultitargetingPlatingWell Manual? 0 Play Time 01:03:36 Cumulative 69.7 hours Start 2024.04.17 @ 04:04:26 End 2024.04.17 @ 17:59:05 Sessions 1 Manual Loads 0 Difficulty Rogue Special Mode None Game No. 85 Rogue 85 Adventurer 0 Explorer 0 Win Type - Total 0 Types 0/0/0/0/0/0/0/0/0 Lore% 19 Gallery% 42 Achievement% 30 Wizard Run 0 Options --------- Layout 1 ASCII 0 Keyboard 1 Movement Vi Keybinds 0 Fullscreen 1 Font 24/Smallcaps Map View 50x35 Zoom Use 0% Tactical HUD 1 Map Filters NONE Filters NONE Steam 1 RUN: d0794db7-0f1b-4e4d-a937-83663b0cdccc